Cogmind - Beta 13 @@@ ROGUE MODE // 2024.04.14 @ 01:06:21 Player: Adrian Barbobot Result: Core destroyed Performance ------------- Evolutions (1) 500 Regions Visited (2) 400 Robots Destroyed (42) 210 Value Destroyed (855) 855 Prototype IDs (2) 40 Alien Tech Used (0) 0 Bonus (0) 0 TOTAL SCORE: 2005 Bonus ------- None Cogmind --------- Core Integrity 0/400 Matter 337/350 Energy 122/150 System Corruption 1% Temperature Critical (539) Movement Flying (428) Ox5 Location -9/Materials Parts ------- > --- POWER (4) -------- Light Ion Engine Light Ion Engine > --- PROPULSION (5) --- Flight Unit Flight Unit Flight Unit Flight Unit Flight Unit > --- UTILITY (5) ------ Huge Storage Unit Small Matter Pod Improved Propulsion Shielding Light Armor Plating Insulated Plating > --- WEAPON (4) ------- Particle Cannon Ion Cannon Ion Cannon Light Assault Rifle > --- INVENTORY (25) --- Flight Unit Improved Propulsion Shielding Insulated Plating Peak State ------------ > --- POWER ------------ Light Ion Engine Light Ion Engine > --- PROPULSION ------- Flight Unit Flight Unit Flight Unit Flight Unit Flight Unit > --- UTILITY ---------- Huge Storage Unit Small Matter Pod Improved Propulsion Shielding Light Armor Plating Insulated Plating > --- WEAPON ----------- Ion Cannon Ion Cannon Ion Cannon Light Assault Rifle > --- INVENTORY -------- Flight Unit Improved Propulsion Shielding Improved Propulsion Shielding Improved Propulsion Shielding Insulated Plating Insulated Plating [Rating: 27] Favorites ----------- Power Light Ion Engine Engine Light Ion Engine Propulsion Flight Unit Treads Light Treads Leg Aluminum Leg Hover Unit Hover Unit Flight Unit Flight Unit Utility High-capacity Matter Pod Device ECM Suite Storage High-capacity Matter Pod Protection Light Armor Plating Weapon Ion Cannon Energy Gun Medium Laser Energy Cannon Ion Cannon Ballistic Gun Heavy Assault Rifle Launcher Grenade Launcher Build | -11 -10 -9 ------- Run | Yrd Mat Mat Slots Evolved 11 | . . 11 Power 3 | . . 3 Propulsion 3 | . . 3 Utility 3 | . . 3 Weapon 2 | . . 2 Parts Attached 53 | 6 9 38 Power 9 | 1 1 7 Engine 9 | 1 1 7 Core . | . . . Reactor . | . . . Propulsion 15 | 2 2 11 Treads 2 | 2 . . Leg 3 | . . 3 Wheel . | . . . Hover 1 | . . 1 Flight 9 | . 2 7 Utility 12 | 1 2 9 Device 3 | . . 3 Storage 4 | 1 2 1 Processor . | . . . Hackware . | . . . Protection 5 | . . 5 Artifact . | . . . Weapon 17 | 2 4 11 Energy Gun 3 | 1 1 1 Energy Cannon 6 | . . 6 Ballistic Gun 6 | 1 1 4 Ballistic Cannon . | . . . Launcher 2 | . 2 . Special Weapon . | . . . Impact Weapon . | . . . Slashing Weapon . | . . . Piercing Weapon . | . . . Special Melee Weapon . | . . . Unidentified Prototypes . | . . . Parts Lost 16 | . 1 15 Power 7 | . 1 6 Propulsion 3 | . . 3 Utility 3 | . . 3 Weapon 3 | . . 3 Highest Loss Streak 4 | . 1 4 To Critical Strikes . | . . . Average Slot Usage (%) 69 | . 94 63 Engine 11 | . 13 11 Treads 2 | . 9 . Leg 2 | . . 3 Flight 10 | . 18 8 Device 4 | . . 5 Storage 13 | . 22 11 Protection 3 | . . 4 Energy Gun 5 | . 11 4 Energy Cannon 5 | . . 7 Ballistic Gun 4 | . 7 4 Launcher 3 | . 9 2 Naked Turns . | . . . Heaviest Build 125 | 11 92 125 Greatest Support 40 | 40 40 30 Greatest Overweight (x) 37 | . 11 37 Average Overweight (x) 5 | . 1 9 Largest Inventory Capacity 25 | 8 25 25 Average Capacity 22 | 7 13 25 Most Carried 8 | 4 8 7 Average Carried 1 | 1 3 . Final Capacity 25 | 8 25 25 Final Carried 4 | 2 4 3 Class Distribution -------------------- 25% | Gunner 23% | Mutant 19% | Bomber 12% | Infiltrator-Bomber 7% | Scavenger-Bomber 7% | Scavenger-Tank 3% | Tank Dominant Class ---------------- Mutant | -10/Materials Gunner | -9/Materials Resources | -11 -10 -9 ----------- Run | Yrd Mat Mat Matter Collected 1348 | 141 267 940 Remotely 258 | . . 258 Salvage Created 1212 | . 181 1031 Parts 83 | . 16 67 Haulers Intercepted 1 | . 1 . Recyclers Shooed 1 | . 1 . Parts Field Recycled . | . . . Retrieved Matter . | . . . Parts Self-Destructed . | . . . Prevented . | . . . Kills | -11 -10 -9 ------- Run | Yrd Mat Mat Combat Hostiles Destroyed 25 | . 5 20 Guns 12 | . 1 11 Cannons 6 | . . 6 AOE 7 | . 4 3 Classes Destroyed 7 | . 5 2 Worker 7 | . 1 6 Builder 3 | . . 3 Hauler 1 | . 1 . Recycler 2 | . . 2 Watcher 4 | . 1 3 Swarmer 7 | . 2 5 Grunt 18 | . 3 15 Best Kill Streak 6 | . 4 6 Combat Bots Only 4 | . 4 2 Max Kills in Single Turn 3 | . 2 3 Gunslinging . | . . . Exploded 2 | . 2 1 Melee . | . . . Uniques/NPCs Destroyed . | . . . Combat | -11 -10 -9 -------- Run | Yrd Mat Mat Hostile Shots Fired 231 | . 50 181 Missed 55 | . 15 40 Damage Taken 2001 | . 380 1621 Core 495 | . 95 400 Absorbed by Shields . | . . . Redirected to Shielding 6 | . . 6 Regen/Repaired (Parts) 31 | . 31 . Core Remaining (%) 81 | 100 62 . Volleys Fired 105 | . 27 78 Largest 4 | . 2 4 Hottest 208 | . 60 208 Shots Fired 214 | . 31 183 Gun 156 | . 28 128 Cannon 47 | . . 47 Launcher 11 | . 3 8 Special . | . . . Kinetic 86 | . 20 66 Thermal 96 | . . 96 Explosive 11 | . 3 8 Electromagnetic 21 | . 8 13 Robot Hit Streak 11 | . 10 11 Robot Miss Streak 6 | . 3 6 Penetration Max . | . . . Secondary Targets 2 | . . 2 Max Gunslinging Chain 1 | . . 1 Shots Hit Robots 101 | . 16 85 Core Hits 57 | . 10 47 Critical Kills 1 | . 1 . Critical Parts Destroyed . | . . . Critical Strikes 3 | . 1 2 Burn 2 | . . 2 Destroy 1 | . 1 . Melee Attacks . | . . . Impact . | . . . Slashing . | . . . Piercing . | . . . Sneak Attacks . | . . . Combat Hostiles . | . . . Follow-up Attacks . | . . . Damage Inflicted 2606 | . 561 2045 Guns 1169 | . 216 953 Cannons 616 | . . 616 Explosions 808 | . 345 463 Melee . | . . . Ramming 13 | . . 13 Kinetic 622 | . 113 509 Thermal 1188 | . 135 1053 Explosive 608 | . 210 398 Electromagnetic 175 | . 103 72 Impact . | . . . Slashing . | . . . Piercing . | . . . Highest Corruption 1 | . . 1 Average Corruption 1 | . . 1 Corruption Purged . | . . . Corruption Blocked . | . . . Effects 15 | . . 15 Message Errors 4 | . . 4 Matter Fused 2 | . . 2 Heat Flow Errors 1 | . . 1 Energy Discharges 3 | . . 3 Parts Rejected 1 | . . 1 Data Loss (minor) 4 | . . 4 Overload Shots . | . . . Overflow Damage 88 | . 50 38 Projectiles 38 | . . 38 Explosions 50 | . 50 . Melee . | . . . Knockbacks . | . . . Impact . | . . . Kinetic . | . . . Secondary . | . . . Self-Inflicted Damage 94 | . 63 31 Shots 4 | . 2 2 Rammed . | . . . Targets Rammed 1 | . . 1 Kicked 1 | . . 1 Crushed . | . . . Highest Temperature 1010 | . 8 1010 Average Temperature 177 | . 3 181 Received Heat Transfer 564 | . 66 498 Effects 86 | . . 86 Shutdowns 35 | . . 35 Energy Bleed 7 | . . 7 Interference 10 | . . 10 Matter Decay 8 | . . 8 Short Circuit 2 | . . 2 Damage (minor) 3 | . . 3 Damage (major) 18 | . . 18 Damage (core) 3 | . . 3 Siege Activations . | . . . Robots Corrupted . | . . . Combat Hostiles . | . . . Parts Fried . | . . . Impact Corruptions . | . . . Robots Melted . | . . . Combat Hostiles . | . . . Parts Melted 2 | . . 2 Heat Transferred 2407 | . 50 2357 Parts Sabotaged . | . . . Parts Stolen . | . . . Parts Stripped . | . . . Power Chain Reactions 2 | . 1 1 Alert | -11 -10 -9 ------- Run | Yrd Mat Mat Peak Influence 297 | . 297 236 Initial 40 | . . 40 Average 120 | . 145 119 Maximum Alert Level 1 | . 1 1 Low Security (%) 86 | 100 61 92 Level 1 13 | . 38 7 Level 2 . | . . . Level 3 . | . . . Level 4 . | . . . Level 5 . | . . . High Security . | . . . Max Security . | . . . Squads Dispatched 8 | . 3 5 Investigation 6 | . 2 4 Extermination . | . . . Reinforcement 2 | . 1 1 Assault . | . . . Garrison . | . . . Intercept . | . . . Searches Triggered . | . . . Construction Impeded . | . . . Haulers Reinforced . | . . . Active Scanning Responses . | . . . Cargo Convoy Interrupts . | . . . Stealth | -11 -10 -9 --------- Run | Yrd Mat Mat Distress Signals 3 | . 2 1 Communications Jammed . | . . . Distress Signals . | . . . Times Spotted 44 | . 8 36 Peak Tracking Total 5 | . 5 4 Tactical Retreats 1 | . 1 . Traps | -11 -10 -9 ------- Run | Yrd Mat Mat Traps Triggered . | . . . Indirectly . | . . . Trap Hack Attempts . | . . . Triggered . | . . . Disarmed 4 | . 4 . Reprogrammed 4 | . . 4 Reused . | . . . Traps Extracted . | . . . Installed . | . . . Triggered . | . . . Machines | -11 -10 -9 ---------- Run | Yrd Mat Mat Machines Disabled 6 | . 3 3 Max in Single Turn 1 | . 1 1 Machines Repaired . | . . . Machines Dismantled . | . . . Machines Sabotaged . | . . . Overloaded Fab Kills . | . . . Hacking | -11 -10 -9 --------- Run | Yrd Mat Mat Machines Accessed 11 | . 6 5 Terminals 7 | . 4 3 Fabricators . | . . . Repair Stations 2 | . 1 1 Recycling Units 2 | . 1 1 Scanalyzers . | . . . Garrison Access . | . . . Total Hacks 39 | . 26 13 Successful 19 | . 13 6 Failed 20 | . 13 7 Catastrophic 5 | . 4 1 Database Lockouts . | . . . Manual . | . . . Terminals 26 | . 18 8 Fabricators . | . . . Repair Stations 6 | . 4 2 Recycling Units 7 | . 4 3 Scanalyzers . | . . . Garrison Access . | . . . Terminal Hacks 12 | . 8 4 Record 1 | . 1 . Prototype ID Bank 1 | . 1 . Emergency Access Points 1 | . 1 . Alert Level 1 | . 1 . Locate Traps 1 | . 1 . Disarm Traps 1 | . 1 . Reprogram Traps 1 | . . 1 Recall Investigation 1 | . . 1 Hauler Manifests 1 | . . 1 Registered Components 1 | . 1 . Zone Layout 2 | . 1 1 Fabricator Hacks . | . . . Repair Station Hacks 2 | . 2 . Scan Component 1 | . 1 . Repair 1 | . 1 . Recycling Unit Hacks 5 | . 3 2 Process 2 | . 1 1 Retrieve Matter 1 | . 1 . Retrieve Components 2 | . 1 1 Scanalyzer . | . . . Garrison Access Hacks . | . . . Unauthorized Hacks . | . . . Terminals . | . . . Fabricators . | . . . Repair Stations . | . . . Recycling Units . | . . . Scanalyzers . | . . . Garrison Access . | . . . Data Cores Recovered . | . . . Used . | . . . Hacking Detections 10 | . 5 5 Full Trace Events 8 | . 4 4 Feedback Events 1 | . . 1 Corruption 1 | . . 1 Feedback Blocked . | . . . Robot Schematics Acquired . | . . . Robots Built . | . . . Authchips . | . . . Time . | . . . Total Robot Build Rating . | . . . Part Schematics Acquired . | . . . Parts Built . | . . . Authchips . | . . . Time . | . . . Total Part Build Rating . | . . . Parts Repaired 1 | . 1 . Time 13 | . 13 . Parts Recycled . | . . . Recycled Matter 768 | . 768 . Retrieved Matter 891 | . 891 . Retrieved Components 9 | . . 9 Parts Scanalyzed . | . . . Part Schematics Acquired . | . . . Parts Damaged . | . . . Bothacking | -11 -10 -9 ------------ Run | Yrd Mat Mat Used RIF Installer . | . . . Robots Hacked . | . . . Non-combat . | . . . Combat . | . . . Robot Hacks Applied . | . . . Relay Couplers Released . | . . . Fabnet Peak Effective % . | . . . Robots Rewired . | . . . Allies Hacked . | . . . Hacks Repelled . | . . . Allies | -11 -10 -9 -------- Run | Yrd Mat Mat Total Allies . | . . . Largest Group . | . . . Highest-Rated Group . | . . . Highest-Rated Ally . | . . . Total Orders . | . . . Ally Attacks . | . . . Total Damage . | . . . Kills . | . . . Allies Corrupted . | . . . Allies Melted . | . . . Intel | -11 -10 -9 ------- Run | Yrd Mat Mat Robot Analysis Total . | . . . Derelict Logs Recovered . | . . . Drone Launches . | . . . Drone Recoveries . | . . . Exploration | -11 -10 -9 ------------- Run | Yrd Mat Mat Turns Passed 3090 | 106 613 2371 Spaces Moved 578 | 60 246 272 Core 21 | 3 . 18 Treads 160 | 57 103 . Legs 99 | . . 99 Wheels . | . . . Hover . | . . . Flight 298 | . 143 155 Fastest Speed 50 | 50 117 330 Average Speed 466 | 154 217 759 Slowest Speed 2120 | 160 917 2120 Overloaded Moves . | . . . Propulsion Burnouts . | . . . Robots Hopped . | . . . Cave-ins Triggered . | . . . Exploration Rate (%) 27 | 6 46 30 Regions Visited 2 Branch Regions . Pre-discovered Areas . | . . . Known Exits Taken . | . . . Unknown Exits Taken 2 | 1 1 . Scrap Searched . | . . . Spaces Dug . | . . . Terrain Destroyed 108 | . 43 65 Melee . | . . . Projectile 6 | . . 6 AOE 102 | . 43 59 Terrain Rammed . | . . . Walls Destroyed . | . . . Machines Disabled . | . . . Actions | -11 -10 -9 --------- Run | Yrd Mat Mat Total 824 | 73 305 446 Wait . | . . . Move 576 | 59 245 272 Hop . | . . . Pick Up 61 | 8 13 40 Fast Attach . | . . . Attach 52 | 6 9 37 Detach 4 | . 3 1 Swap 1 | . . 1 Drop 24 | . 8 16 Fire 105 | . 27 78 Melee . | . . . Ram . | . . . Kick 1 | . . 1 Crush . | . . . Escape Stasis . | . . . Rewire . | . . . Trap . | . . . Miscellaneous . | . . . Route ------- -11/Scrapyard -10/Materials (discovered 2 exits: *Mat / [*Min]) -9/Materials (discovered 2 exits: [*Mat] / [*Min]) History --------- Turn | Location | Event 32 | -11/Scrapyard | Discovered new exit (range 15) 107 | -11/Scrapyard | Entered Materials 302 | -10/Materials | Build established: Mutant 362 | -10/Materials | Repaired Grenade Launcher? 370 | -10/Materials | Discovered new exit (range 14) 506 | -10/Materials | Discovered new exit (range 15) 720 | -10/Materials | Entered another Materials area 720 | -9/Materials | Evolved 11 slots: Power x3, Propulsion x3, Utility x3, Weapon x2 1010 | -9/Materials | Build established: Bomber 1196 | -9/Materials | Discovered new exit (range 11) 1341 | -9/Materials | Build established: Infiltrator-Bomber 1978 | -9/Materials | Lost 3 parts (1p1u1w) 2009 | -9/Materials | Discovered new exit (range 16) 2059 | -9/Materials | Core integrity fell below 50% 2118 | -9/Materials | Lost 4 parts (1n2u1w) 2163 | -9/Materials | Core integrity fell below 20% 2187 | -9/Materials | Lost 4 parts (2p1n1w) 2374 | -9/Materials | Build established: Gunner 3092 | -9/Materials | Core destroyed Last Messages --------------- R-06 Scavenger collects Ion Cannon. Destroyed Hover Unit. Signal Interpreter melted. W-16 Scout destroyed. R-06 Scavenger collects Insulated Plating. R-06 Scavenger inserts Insulated Plating into recycling unit. K-01 Serf cleans the Recycling Unit. R-06 Scavenger collects Imp. Propulsion Shielding. R-06 Scavenger inserts Imp. Propulsion Shielding into recycling unit. Power failure, Lgt. Ion Engine shutdown. R-06 Scavenger collects Hcp. Matter Pod. G-34 Mercenary destroyed. K-01 Serf collects debris. R-06 Scavenger inserts Hcp. Matter Pod into recycling unit. Power failure, Lgt. Ion Engine shutdown. Overheating: Core damaged (-68). Map ----- +----------------------------------------------------+ | ?????????????????????????????????????????????????? | | ?????????????????????????????????????????????????? | | ?????????????????????????????????????????????????? | | ?????????????????????????????????????????????????? | | ?????????????????????????????????????????????????? | | ?????????????????????????????????????????????????? | | ?????????????????????????????????????????????????? | | ?????????????????????????????????????????????????? | | ?????????????????????????????????????????????????? | | ?????????????????????????+???????????????????????? | | ????????????????????##### ???????????????????????? | | ??????????????????? ???????????????????????? | | ???????????????????? ???????????????????????? | | ???????????????????? ???????????????????????? | | ???????????????????? a ???????????????????????? | | ???????????????? ?? " ???????????????????????? | | ???????????????? ?""" #??????????????????????? | | ????????????????? """ #??????????????????????? | | ????????????????? """ ###########????????????? | | ???????????????? "" ## #????????????? | | ???????????????#k """ ## #????????????? | | ??????????????## "" # #????????????? | | ??????????????# "" # """ #????????????? | | ??????????????# " + """ #????????????? | | ??????????????#% k # """ #????????????? | | ??????????????# @ # """ #????????????? | | ??????????????# ###"T"# =# """ #????????????? | | ??????????????# #?#"""#=%; #????????????? | | ??????????????# #?###?# #+##+#####????????????? | | ?????????????## #?????# #????????????????? | | #???????????# ####### k #????????????????? | | #???????????# ## ! "" #????????????????? | | #???????????# ## rY" #????????????????? | | ##########??# =### "" #????????????????? | | ####!!!!##??## = ### #????????????????? | | ###! !#?### !### k ######+####??????? | | #### #?### ### | #??????? | | # ### ####### < #??????? | | ^ ! #??????? | | #####??????? | | ############ #??????????? | | "##+####### ### ###########?? #??????????? | | ! "# ### ##?#/#????????????? +??????????? | | """# #?# #?? ????????????? #??????????? | | #### """ #?# #? ?????????????? #??????????? | | ### """"#?# # ????????????? #??????????? | | ### = """"#?# # ??????????????#??????????? | | ### """"#?# # ?[[] ?????????????????????????? | | ### """ #?# # ?[]] #????????????????????????? | | ### #?# #? [][ #????????????????????????? | +----------------------------------------------------+ Best States ------------- Heat Dissipation 28 Energy Generation 25 Energy Capacity 325 Matter Stores 500 Matter Capacity 550 Sight Range 16 Terrain Scan Density 10 ECM Strength 1 Armor Coverage 300 Resistance: EM 15 Propulsion Shielding 66 Evasion (%) 40 Recoil Reduction 2 Item Schematics ----------------- None Robot Schematics ------------------ None Fabricated ------------ Nothing Alien Tech Used ----------------- None Achievements -------------- None Challenges ------------ None Game ------ Seed AssemblyTrackerStick Manual? 0 Play Time 00:30:27 Cumulative 1.7 hours Start 2024.04.05 @ 13:59:23 End 2024.04.14 @ 01:06:21 Sessions 1 Manual Loads 0 Difficulty Rogue Special Mode None Game No. 6 Rogue 6 Adventurer 0 Explorer 0 Win Type - Total 0 Types 0/0/0/0/0/0/0/0/0 Lore% 1 Gallery% 5 Achievement% 6 Wizard Run 0 Options --------- Layout 1 ASCII 0 Keyboard 0 Movement Mouse Keybinds 0 Fullscreen 1 Font 24/Smallcaps Map View 50x35 Zoom Use 0% Tactical HUD 0 Map Filters NONE Filters NONE Steam 1 RUN: 71a3a20e-43eb-4837-a481-9fa32cd4e704